fUSD/lending_fUSD_20240216
["ID","MTS","AMOUNT","RATE_DAILY","PERIOD"]
[314254704,1708119139163,-500.0,0.0005178,60]
[314254705,1708119139174,-500.0,0.0005178,60]
[314254706,1708119139184,-24352.15,0.0005178,60]
[314254707,1708119139194,-1397.78,0.0005178,60]
[314254708,1708119139205,-500.0,0.0005178,60]
[314254709,1708119139216,-500.0,0.0005178,60]
[314254710,1708119139228,-500.0,0.0005178,60]
[314254711,1708119139240,-2225.09,0.0005178,60]
[314254712,1708119139255,-500.0,0.0005178,60]
[314254713,1708119139266,-500.0,0.0005178,60]
[314254714,1708119139280,-3059.93,0.0005178,60]
[314254715,1708119139291,-663.32,0.0005178,60]
[314254716,1708119139303,-559.03,0.0005178,60]
[314254717,1708119139313,-500.0,0.0005178,60]
[314254718,1708119139324,-500.0,0.0005178,60]
[314254719,1708119139335,-500.0,0.0005178,60]
[314254720,1708119139346,-500.0,0.0005178,60]
[314254721,1708119139356,-3189.76,0.0005178,60]
[314254722,1708119139367,-2572.92,0.0005178,60]
[314254723,1708119139378,-1075.21,0.0005178,60]
[314254724,1708119139389,-500.0,0.0005178,60]
[314254725,1708119139399,-500.0,0.0005178,60]
[314254726,1708119139409,-4525.95,0.0005178,60]
[314254727,1708119139418,-500.0,0.0005178,60]
[314254728,1708119139428,-648.82,0.0005178,60]
[314254729,1708119139437,-5354.43,0.0005178,60]
[314254730,1708119139447,-703.45,0.0005178,60]
[314254731,1708119139457,-1211.83,0.0005178,60]
[314254732,1708119139468,-871.55,0.0005178,60]
[314254733,1708119139479,-609.42,0.0005178,60]
[314254734,1708119139489,-1231.04,0.0005178,60]
[314254735,1708119139504,-737.52,0.0005178,60]
[314254736,1708119139514,-591.52,0.0005178,60]
[314254737,1708119139523,-719.76,0.0005178,60]
[314254738,1708119139533,-2765.99,0.0005178,60]
[314254739,1708119139543,-500.0,0.0005178,60]
[314254740,1708119139553,-500.0,0.0005178,60]
[314254741,1708119139563,-1575.91,0.0005178,60]
[314254742,1708119139574,-500.0,0.0005178,60]
[314254743,1708119139585,-868.38,0.0005178,60]
[314254744,1708119139594,-9546.8,0.0005178,60]
[314254745,1708119139604,-2411.87,0.0005178,60]
[314254746,1708119139613,-606.97,0.0005178,60]
[314254747,1708119139623,-500.0,0.0005178,60]
[314254748,1708119139633,-500.0,0.0005178,60]
[314254749,1708119139642,-570.56,0.0005178,60]
[314254750,1708119139651,-500.0,0.0005178,60]
[314254751,1708119139661,-1028.79,0.0005178,60]
[314254752,1708119139670,-500.0,0.0005178,60]
[314254753,1708119139679,-1081.67,0.0005178,60]
[314254754,1708119139689,-500.0,0.0005178,60]
[314254755,1708119139698,-500.0,0.0005178,60]
[314254756,1708119139707,-8340.13,0.0005178,60]
[314254757,1708119139716,-500.0,0.0005178,60]
[314254758,1708119139726,-500.0,0.0005178,60]
[314254759,1708119139735,-6395.6,0.0005178,14]
[314254760,1708119139749,-500.0,0.0005178,60]
[314254761,1708119139759,-500.0,0.0005178,60]
[314254762,1708119139769,-500.0,0.0005178,60]
[314254763,1708119139778,-500.0,0.0005178,60]
[314254764,1708119139787,-2287.27,0.0005178,60]
[314254765,1708119139796,-500.0,0.0005178,60]
[314254766,1708119139805,-500.0,0.0005178,60]
[314254767,1708119139816,-542.74,0.0005178,60]
[314254768,1708119139826,-1517.81,0.0005178,60]
[314254769,1708119139835,-500.0,0.0005178,60]
[314254770,1708119139847,-520.3,0.0005178,60]
[314254771,1708119139858,-7477.21,0.0005178,60]
[314254772,1708119139869,-500.0,0.0005178,60]
[314254773,1708119139878,-714.64,0.0005178,60]
[314254774,1708119139888,-500.0,0.0005178,60]
[314254775,1708119139897,-630.12,0.0005178,60]
[314254776,1708119139906,-500.0,0.0005178,60]
[314254777,1708119139921,-500.0,0.0005178,60]
[314254778,1708119139931,-722.94,0.0005178,60]
[314254779,1708119139940,-910.24,0.0005178,60]
[314254780,1708119139950,-3306.89,0.0005178,60]
[314254781,1708119139963,-500.0,0.0005178,60]
[314254782,1708119139973,-544.82,0.0005178,60]
[314254783,1708119139983,-5810.7,0.0005178,60]
[314254784,1708119139995,-2333.25,0.0005178,60]
[314254785,1708119140005,-500.0,0.0005178,60]
[314254786,1708119140015,-1821.43,0.0005178,60]
[314254787,1708119140025,-500.0,0.0005178,60]
[314254788,1708119140035,-1107.39,0.0005178,60]
[314254789,1708119140045,-500.0,0.0005178,60]
[314254790,1708119140054,-3684.25,0.0005178,60]
[314254791,1708119140064,-583.02,0.0005178,60]
[314254792,1708119140074,-500.0,0.0005178,60]
[314254793,1708119140083,-500.0,0.0005178,60]
[314254794,1708119140093,-673.09,0.0005178,60]
[314254795,1708119140102,-500.0,0.0005178,60]
[314254796,1708119140113,-500.0,0.0005178,60]
[314254797,1708119140123,-500.0,0.0005178,60]
[314254798,1708119140132,-530.67,0.0005178,60]
[314254799,1708119140142,-868.96,0.0005178,60]
[314254800,1708119140152,-500.0,0.0005178,60]
[314254801,1708119140162,-500.0,0.0005178,60]
[314254802,1708119140171,-688.48,0.0005178,60]
[314254803,1708119140181,-2624.63,0.0005178,60]
[314254804,1708119140190,-500.0,0.0005178,60]
[314254805,1708119140200,-842.25,0.0005178,60]
[314254806,1708119140210,-500.0,0.0005178,60]
[314254807,1708119140220,-905.88,0.0005178,60]
[314254808,1708119140230,-500.0,0.0005178,60]
[314254809,1708119140243,-500.0,0.0005178,60]
[314254810,1708119140253,-1344.54,0.0005178,60]
[314254811,1708119140262,-500.0,0.0005178,60]
[314254812,1708119140272,-842.36,0.0005178,2]
[314254813,1708119140282,-2942.14,0.0005178,60]
[314254814,1708119140292,-505.82,0.0005178,60]
[314254815,1708119140302,-500.0,0.0005178,60]
[314254816,1708119140312,-2570.64,0.0005178,60]
[314254817,1708119140322,-2688.02,0.0005178,60]
[314254818,1708119140333,-2260.09,0.0005178,60]
[314254819,1708119140344,-189.1784252,0.0005178,60]
[314254820,1708119140354,-500.0,0.0005178,60]
[314254821,1708119140364,-500.0,0.0005178,60]
[314254822,1708119140376,-716.26,0.0005178,60]
[314254823,1708119140387,-924.33,0.0005178,60]
[314254824,1708119140398,-500.0,0.0005178,60]
[314254825,1708119140408,-657.39,0.0005178,60]
[314254826,1708119140417,-155.0050409,0.0005178,60]
[314254827,1708119140427,-2023.51,0.0005178,60]
[314254828,1708119140437,-1625.46,0.0005178,60]
[314254829,1708119140447,-506.3,0.0005178,60]
[314254830,1708119140457,-500.0,0.0005178,60]
[314254831,1708119140466,-953.19,0.0005178,60]
[314254832,1708119140476,-500.0,0.0005178,60]
[314254833,1708119140486,-680.83,0.0005178,60]
[314254834,1708119140498,-1719.81,0.0005178,60]
[314254835,1708119140508,-586.01,0.0005178,60]
[314254836,1708119140517,-582.82,0.0005178,60]
[314254837,1708119140529,-562.1,0.0005178,60]
[314254838,1708119140539,-659.84,0.0005178,60]
[314254839,1708119140548,-4202.04,0.0005178,60]
[314254840,1708119140558,-7068.33,0.0005178,60]
[314254841,1708119140569,-500.0,0.0005178,60]
[314254842,1708119140580,-500.0,0.0005178,60]
[314254843,1708119140591,-500.0,0.0005178,60]
[314254844,1708119140602,-2643.96,0.0005178,60]
[314254845,1708119140611,-568.8,0.0005178,60]
[314254846,1708119140621,-500.0,0.0005178,60]
[314254847,1708119140631,-600.0,0.0005178,60]
[314254848,1708119140640,-1183.13,0.0005178,60]
[314254849,1708119140650,-500.0,0.0005178,60]
[314254850,1708119140659,-1949.14,0.0005178,60]
[314254851,1708119140669,-566.21,0.0005178,60]
[314254852,1708119140679,-1927.89,0.0005178,60]
[314254853,1708119140690,-500.0,0.0005178,60]
[314254854,1708119140699,-699.96,0.0005178,60]
[314254855,1708119140710,-500.0,0.0005178,60]
[314254856,1708119140720,-3348.01,0.0005178,60]
[314254857,1708119140732,-1200.81,0.0005178,60]
[314254858,1708119140744,-500.0,0.0005178,60]
[314254859,1708119140756,-1872.95,0.0005178,60]
[314254860,1708119140767,-529.58,0.0005178,60]
[314254861,1708119140779,-716.71,0.0005178,60]
[314254862,1708119140791,-693.17,0.0005178,60]
[314254863,1708119140801,-500.0,0.0005178,60]
[314254864,1708119140812,-1099.89,0.0005178,60]
[314254865,1708119140822,-500.0,0.0005178,60]
[314254866,1708119140833,-500.0,0.0005178,60]
[314254867,1708119140843,-552.07,0.0005178,60]
[314254868,1708119140854,-500.0,0.0005178,60]
[314254869,1708119140865,-1791.39,0.0005178,60]
[314254870,1708119140875,-500.0,0.0005178,60]
[314254871,1708119140885,-573.51,0.0005178,60]
[314254872,1708119140896,-777.88,0.0005178,60]
[314254873,1708119140907,-1055.53,0.0005178,60]
[314254874,1708119140922,-500.0,0.0005178,60]
[314254875,1708119140933,-722.67,0.0005178,60]
[314254876,1708119140943,-1887.23,0.0005178,60]
[314254877,1708119140953,-500.0,0.0005178,60]
[314254878,1708119140963,-500.0,0.0005178,60]
[314254879,1708119140974,-674.89,0.0005178,60]
[314254880,1708119140984,-2198.11,0.0005178,60]
[314254881,1708119140997,-8115.72,0.0005178,60]
[314254882,1708119141008,-701.75,0.0005178,60]
[314254883,1708119141017,-500.0,0.0005178,60]
[314254884,1708119141027,-779.02,0.0005178,60]
[314254885,1708119141038,-500.0,0.0005178,60]
[314254886,1708119141048,-1002.39,0.0005178,60]
[314254887,1708119141058,-500.0,0.0005178,60]
[314254888,1708119141069,-1272.04,0.0005178,60]
[314254889,1708119141079,-1115.22,0.0005178,60]
[314254890,1708119141089,-500.0,0.0005178,60]
[314254891,1708119141099,-505.42,0.0005178,60]
[314254892,1708119141109,-3301.31,0.0005178,60]
[314254893,1708119141119,-626.52,0.0005178,60]
[314254894,1708119141128,-500.0,0.0005178,60]
[314254895,1708119141138,-500.0,0.0005178,60]
[314254896,1708119141148,-500.0,0.0005178,60]
[314254897,1708119141158,-500.0,0.0005178,60]
[314254898,1708119141168,-1972.92,0.0005178,60]
[314254899,1708119141178,-500.0,0.0005178,60]
[314254900,1708119141189,-991.91,0.0005178,60]
[314254901,1708119141199,-914.46,0.0005178,60]
[314254902,1708119141210,-500.0,0.0005178,60]
[314254903,1708119141221,-536.93,0.0005178,60]
[314254904,1708119141231,-500.0,0.0005178,60]
[314254905,1708119141243,-500.0,0.0005178,60]
[314254906,1708119141254,-500.0,0.0005178,60]
[314254907,1708119141264,-6496.83,0.0005178,60]
[314254908,1708119141273,-500.0,0.0005178,2]
[314254909,1708119141283,-500.0,0.0005178,60]
[314254910,1708119141293,-915.62,0.00051781,30]
[314254911,1708119141303,-915.62,0.00051781,30]
[314254912,1708119141313,-405.38,0.00051781,30]
[314254913,1708119141324,-405.38,0.00051781,30]
[314254914,1708119141333,-915.62,0.00051781,30]
[314254915,1708119141343,-405.38,0.00051781,30]
[314254916,1708119141353,-915.62,0.00051781,30]
[314254917,1708119141363,-405.38,0.00051781,30]
[314254918,1708119141372,-405.38,0.00051781,30]
[314254919,1708119141383,-915.62,0.00051781,30]
[314254920,1708119141393,-405.38,0.00051781,30]
[314254921,1708119141403,-911.84,0.00051781,30]
[314254922,1708119141414,-915.62,0.00051781,30]
[314254923,1708119141425,-405.38,0.00051781,30]
[314254924,1708119141435,-405.38,0.00051781,30]
[314254925,1708119141445,-915.62,0.00051781,30]
[314254926,1708119141456,-1831.24,0.00051781,30]
[314254927,1708119141466,-810.76,0.00051781,30]
[314254928,1708119141476,-915.62,0.00051781,30]
[314254929,1708119141486,-405.38,0.00051781,30]
[314254930,1708119141498,-915.62,0.00051781,30]
[314254931,1708119141508,-405.38,0.00051781,30]
[314254932,1708119141518,-915.62,0.00051781,30]
[314254933,1708119141529,-405.38,0.00051781,30]
[314254934,1708119141539,-929.23673966,0.00051798,60]
[314254935,1708119141548,-17513.0,0.000518,120]
[314254936,1708119141558,-311.0,0.00051807,60]
[314254937,1708119141568,-150.0,0.00051862,60]
[314254938,1708119141579,-150.0,0.00051862,60]
[314254939,1708119141590,-200.0,0.00051878,69]
[314254940,1708119141600,-200.0,0.00051878,68]
[314254941,1708119141609,-200.0,0.00051878,67]
[314254942,1708119141620,-200.0,0.00051878,66]
[314254943,1708119141629,-200.0,0.00051878,65]
[314254944,1708119141639,-5000.0,0.00051885,90]
[314254945,1708119141649,-152.72220558,0.00051886,51]
[314254946,1708119141659,-200.0,0.000519,27]
[314254947,1708119141669,-10000.0,0.000519,120]
[314254948,1708119141679,-166.13,0.00051934,2]
[314254949,1708119141690,-177.05561279,0.00051995,60]
[314254950,1708119141701,-1000.0,0.00051999,120]
[314254951,1708119141711,-100000.0,0.00052,52]
[314254952,1708119141721,-2911.91898642,0.00052,120]
[314254953,1708119141730,-15123.29285721,0.00052,5]
[314254954,1708119141742,-188.6972085,0.00052,7]
[314254955,1708119141751,-182.79400838,0.00052,30]
[314254956,1708119141760,-5323.96096066,0.00052,30]
[314254957,1708119141770,-5000.0,0.00052,60]
[314254958,1708119141780,-8890.25602856,0.00052,120]
[314254959,1708119141790,-3000.16,0.00052,120]
[314254960,1708119141800,-20124.6863792,0.00052,15]
[314254961,1708119141811,-100000.0,0.00052,120]
[314254962,1708119141820,-100000.0,0.00052,120]
[314254963,1708119141830,-8000.0,0.00052,120]
[314254964,1708119141840,-10325.0,0.00052,120]
[314254965,1708119141850,-5015.28779117,0.00052,60]
[314254966,1708119141861,-1000.0,0.00052,120]
[314254967,1708119141870,-648.15353579,0.00052,120]
[314254968,1708119141880,-10000.0,0.00052,90]
[314254969,1708119141890,-1856.75526281,0.00052,120]
[314254970,1708119141899,-500.0,0.00052,7]
[314254971,1708119141909,-500.0,0.00052,7]
[314254972,1708119141919,-500.0,0.00052,7]
[314254973,1708119141931,-150.0,0.00052,30]
[314254974,1708119141941,-150.0,0.00052,30]
[314254975,1708119141951,-300.0,0.00052,53]
[314254976,1708119141961,-200.0,0.00052,30]
[314254977,1708119141971,-200.0,0.00052,30]
[314254978,1708119141981,-37630.5134564,0.00052018,2]
[314254979,1708119141992,-174.3603381,0.00052018,2]
[314254980,1708119142003,-6230.0,0.00052035,61]
[314254981,1708119142014,-6231.98,0.00052035,61]
[314254982,1708119142024,-170.61912571,0.00052043,62]
[314254983,1708119142034,-6230.0,0.00052045,61]
[314254984,1708119142044,-6230.0,0.00052045,61]
[314254985,1708119142054,-254.52395784,0.00052049,12]
[314254986,1708119142064,-172.94189201,0.00052049,12]
[314254987,1708119142074,-79864.35243343,0.00052054,2]
[314254988,1708119142084,-79864.35243343,0.00052054,2]
[314254989,1708119142093,-6274.411303,0.00052054,30]
[314254990,1708119142104,-1542.344744,0.00052054,120]
[314254991,1708119142114,-224.971069,0.00052054,30]
[314254992,1708119142125,-1800.309217,0.00052054,120]
[314254993,1708119142134,-648.473237,0.00052054,30]
[314254994,1708119142144,-11408.432035,0.00052054,30]
[314254995,1708119142154,-1118.199939,0.00052054,120]
[314254996,1708119142164,-366.762045,0.00052054,30]
[314254997,1708119142174,-1813.489874,0.00052054,30]
[314254998,1708119142184,-269.813937,0.00052054,30]
[314254999,1708119142193,-182.331104,0.00052054,30]
[314255000,1708119142204,-1207.736368,0.00052054,30]
[314255001,1708119142214,-318.573835,0.00052054,120]
[314255002,1708119142223,-284.507866,0.00052054,30]
[314255003,1708119142233,-826.421434,0.00052054,30]
[314255004,1708119142244,-223.001685,0.00052054,120]
[314255005,1708119142253,-422.547837,0.00052054,30]
[314255006,1708119142264,-297.748772,0.00052054,30]
[314255007,1708119142273,-278.752106,0.00052054,120]
[314255008,1708119142283,-3394.091742,0.00052054,30]
[314255009,1708119142292,-390.252948,0.00052054,120]
[314255010,1708119142301,-2509.588321,0.00052054,30]
[314255011,1708119142311,-171.866824,0.00052054,120]
[314255012,1708119142320,-172.818672,0.00052054,30]
[314255013,1708119142329,-1204.328524,0.00052054,30]
[314255014,1708119142339,-267.602021,0.00052054,120]
[314255015,1708119142349,-842.899881,0.00052054,30]
[314255016,1708119142359,-500.0,0.00052054,60]
[314255017,1708119142369,-500.0,0.00052054,60]
[314255018,1708119142378,-177.63788813,0.00052054,60]
[314255019,1708119142390,-500.0,0.00052054,60]
[314255020,1708119142401,-500.0,0.00052054,60]
[314255021,1708119142410,-500.0,0.00052054,60]
[314255022,1708119142419,-500.0,0.00052054,60]
[314255023,1708119142430,-500.0,0.00052054,60]
[314255024,1708119142442,-500.0,0.00052054,60]
[314255025,1708119142453,-500.0,0.00052054,60]
[314255026,1708119142464,-500.0,0.00052054,60]
[314255027,1708119142474,-500.0,0.00052054,60]
[314255028,1708119142483,-500.0,0.00052054,60]
[314255029,1708119142494,-500.0,0.00052054,60]
[314255030,1708119142504,-500.0,0.00052054,60]
[314255031,1708119142513,-500.0,0.00052054,60]
[314255032,1708119142522,-500.0,0.00052054,60]
[314255033,1708119142531,-500.0,0.00052054,60]
[314255034,1708119142541,-500.0,0.00052054,60]
[314255035,1708119142550,-500.0,0.00052054,60]
[314255036,1708119142560,-500.0,0.00052054,60]
[314255037,1708119142571,-500.0,0.00052054,60]
[314255038,1708119142581,-500.0,0.00052054,60]
[314255039,1708119142592,-500.0,0.00052054,60]
[314255040,1708119142601,-500.0,0.00052054,60]
[314255041,1708119142611,-500.0,0.00052054,60]
[314255042,1708119142621,-500.0,0.00052054,60]
[314255043,1708119142630,-500.0,0.00052054,60]
[314255044,1708119142640,-500.0,0.00052054,60]
[314255045,1708119142649,-500.0,0.00052054,60]
[314255046,1708119142659,-500.0,0.00052054,60]
[314255047,1708119142669,-500.0,0.00052054,60]
[314255048,1708119142678,-500.0,0.00052054,60]
[314255049,1708119142688,-500.0,0.00052054,60]
[314255050,1708119142698,-500.0,0.00052054,60]
[314255051,1708119142708,-500.0,0.00052054,60]
[314255052,1708119142718,-1000.0,0.00052054,120]
[314255053,1708119142728,-500.0,0.00052054,60]
[314255054,1708119142737,-500.0,0.00052054,60]
[314255055,1708119142748,-500.0,0.00052054,60]
[314255056,1708119142758,-500.0,0.00052054,60]
[314255057,1708119142767,-664.54,0.00052054,30]
[314255058,1708119142777,-500.0,0.00052054,60]
[314255059,1708119142787,-500.0,0.00052054,60]
[314255060,1708119142797,-500.0,0.00052054,60]
[314255061,1708119142807,-568.05,0.00052054,2]
[314255062,1708119142817,-500.0,0.00052054,60]
[314255063,1708119142827,-500.0,0.00052054,60]
[314255064,1708119142837,-500.0,0.00052054,60]
[314255065,1708119142846,-500.0,0.00052054,60]
[314255066,1708119142856,-500.0,0.00052054,60]
[314255067,1708119142866,-500.0,0.00052054,60]
[314255068,1708119142875,-500.0,0.00052054,60]
[314255069,1708119142885,-500.0,0.00052054,60]
[314255070,1708119142895,-500.0,0.00052054,60]
[314255071,1708119142905,-500.0,0.00052054,60]
[314255072,1708119142917,-500.0,0.00052054,60]
[314255073,1708119142927,-500.0,0.00052054,60]
[314255074,1708119142937,-500.0,0.00052054,60]
[314255075,1708119142947,-500.0,0.00052054,60]
[314255076,1708119142957,-500.0,0.00052054,60]
[314255077,1708119142967,-500.0,0.00052054,60]
[314255078,1708119142977,-500.0,0.00052054,60]
[314255079,1708119142987,-500.0,0.00052054,60]
[314255080,1708119142999,-500.0,0.00052054,60]
[314255081,1708119143010,-500.0,0.00052054,60]
[314255082,1708119143020,-500.0,0.00052054,60]
[314255083,1708119143030,-500.0,0.00052054,60]
[314255084,1708119143039,-500.0,0.00052054,60]
[314255085,1708119143049,-500.0,0.00052054,60]
[314255086,1708119143059,-500.0,0.00052054,60]
[314255087,1708119143069,-500.0,0.00052054,60]
[314255088,1708119143079,-631.37,0.00052054,60]
[314255089,1708119143090,-500.0,0.00052054,60]
[314255090,1708119143100,-500.0,0.00052054,60]
[314255091,1708119143110,-500.0,0.00052054,60]
[314255092,1708119143119,-500.0,0.00052054,60]
[314255093,1708119143129,-185.71465635,0.00052054,60]
[314255094,1708119143138,-500.0,0.00052054,60]
[314255095,1708119143148,-500.0,0.00052054,60]
[314255096,1708119143158,-500.0,0.00052054,60]
[314255097,1708119143168,-500.0,0.00052054,60]
[314255098,1708119143178,-500.0,0.00052054,60]
[314255099,1708119143187,-500.0,0.00052054,60]
[314255100,1708119143197,-500.0,0.00052054,60]
[314255101,1708119143207,-500.0,0.00052054,60]
[314255102,1708119143217,-500.0,0.00052054,60]
[314255103,1708119143226,-500.0,0.00052054,60]
[314255104,1708119143237,-549.14,0.00052054,60]
[314255105,1708119143250,-500.0,0.00052054,60]
[314255106,1708119143260,-500.0,0.00052054,60]
[314255107,1708119143271,-297.61927248,0.00052054,60]
[314255108,1708119143281,-177.88,0.00052054,60]
[314255109,1708119143291,-396.88655163,0.00052054,60]
[314255110,1708119143301,-500.0,0.00052054,60]
[314255111,1708119143311,-500.0,0.00052054,60]
[314255112,1708119143320,-953.91,0.00052054,60]
[314255113,1708119143330,-713.03,0.00052054,60]
[314255114,1708119143340,-500.0,0.00052054,60]
[314255115,1708119143349,-639.89,0.00052054,60]
[314255116,1708119143359,-500.0,0.00052054,60]
[314255117,1708119143369,-510.16,0.00052054,60]
[314255118,1708119143379,-500.0,0.00052054,60]
[314255119,1708119143388,-500.0,0.00052054,60]
[314255120,1708119143400,-500.0,0.00052054,60]
[314255121,1708119143409,-580.88,0.00052054,60]
[314255122,1708119143419,-500.0,0.00052054,60]
[314255123,1708119143431,-500.0,0.00052054,60]
[314255124,1708119143441,-500.0,0.00052054,60]
[314255125,1708119143452,-555.94,0.00052054,60]
[314255126,1708119143462,-572.13,0.00052054,60]
[314255127,1708119143472,-570.46,0.00052054,60]
[314255128,1708119143482,-551.75,0.00052054,60]
[314255129,1708119143492,-500.0,0.00052054,60]
[314255130,1708119143502,-500.0,0.00052054,60]
[314255131,1708119143511,-500.0,0.00052054,60]
[314255132,1708119143522,-500.0,0.00052054,60]
[314255133,1708119143531,-616.49,0.00052054,60]
[314255134,1708119143542,-500.0,0.00052054,60]
[314255135,1708119143552,-500.0,0.00052054,60]
[314255136,1708119143761,-500.0,0.00052054,60]
[314255137,1708119143772,-569.39,0.00052054,60]
[314255138,1708119143782,-500.0,0.00052054,60]
[314255139,1708119143791,-500.0,0.00052054,60]
[314255140,1708119143800,-614.71,0.00052054,60]
[314255141,1708119143809,-500.0,0.00052054,60]
[314255142,1708119143819,-500.0,0.00052054,60]
[314255143,1708119143828,-500.0,0.00052054,60]
[314255144,1708119143837,-396.39301847,0.00052054,60]
[314255145,1708119143847,-2236.49,0.00052054,60]
[314255146,1708119143856,-869.27,0.00052054,60]
[314255147,1708119143865,-679.72,0.00052054,60]
[314255148,1708119143875,-514.97,0.00052054,60]
[314255149,1708119143884,-500.0,0.00052054,60]
[314255150,1708119143893,-745.29,0.00052054,60]
[314255151,1708119143902,-500.0,0.00052054,60]
[314255152,1708119143912,-597.04,0.00052054,60]
[314255153,1708119143923,-500.0,0.00052054,60]
[314255154,1708119143936,-647.43,0.00052054,60]
[314255155,1708119143946,-541.75,0.00052054,60]
[314255156,1708119143955,-500.0,0.00052054,60]
[314255157,1708119143966,-500.0,0.00052054,60]
[314255158,1708119143975,-1088.61,0.00052054,2]
[314255159,1708119143985,-500.0,0.00052054,60]
[314255160,1708119143996,-500.0,0.00052054,60]
[314255161,1708119144006,-500.0,0.00052054,60]
[314255162,1708119144015,-500.0,0.00052054,60]
[314255163,1708119144024,-500.0,0.00052054,60]
[314255164,1708119144034,-500.0,0.00052054,60]
[314255165,1708119144045,-568.01,0.00052054,60]
[314255166,1708119144055,-500.0,0.00052054,60]
[314255167,1708119144065,-581.86,0.00052054,60]
[314255168,1708119144074,-500.0,0.00052054,60]
[314255169,1708119144084,-500.0,0.00052054,60]
[314255170,1708119144094,-792.04,0.00052054,60]
[314255171,1708119144104,-500.0,0.00052054,60]
[314255172,1708119144113,-500.0,0.00052054,60]
[314255173,1708119144123,-500.0,0.00052054,60]
[314255174,1708119144132,-500.0,0.00052054,60]
[314255175,1708119144142,-500.0,0.00052054,60]
[314255176,1708119144152,-574.86,0.00052054,60]
[314255177,1708119144161,-500.0,0.00052054,60]
[314255178,1708119144171,-339.08916622,0.00052054,60]
[314255179,1708119144182,-724.01,0.00052054,60]
[314255180,1708119144194,-500.0,0.00052054,60]
[314255181,1708119144204,-500.0,0.00052054,30]
[314255182,1708119144214,-500.0,0.00052054,60]
[314255183,1708119144223,-500.0,0.00052054,60]
[314255184,1708119144233,-500.0,0.00052054,60]
[314255185,1708119144244,-500.0,0.00052054,60]
[314255186,1708119144253,-500.0,0.00052054,60]
[314255187,1708119144263,-574.15,0.00052054,60]
[314255188,1708119144273,-618.71803841,0.00052054,60]
[314255189,1708119144282,-523.57640165,0.00052054,60]
[314255190,1708119144291,-617.63,0.00052054,60]
[314255191,1708119144301,-1173.51,0.00052054,7]
[314255192,1708119144310,-604.06,0.00052054,60]
[314255193,1708119144320,-500.0,0.00052054,60]
[314255194,1708119144332,-500.0,0.00052054,60]
[314255195,1708119144343,-500.0,0.00052054,60]
[314255196,1708119144353,-500.0,0.00052054,60]
[314255197,1708119144363,-500.0,0.00052054,60]
[314255198,1708119144373,-500.0,0.00052054,60]
[314255199,1708119144383,-500.0,0.00052054,60]
[314255200,1708119144393,-511.02,0.00052054,60]
[314255201,1708119144403,-840.32,0.00052054,2]
[314255202,1708119144412,-500.0,0.00052054,60]
[314255203,1708119144421,-551.0,0.00052054,60]